Cogmind - Beta 14 @@@ ROGUE MODE // 2024.08.10 @ 06:04:22 Player: osman sinnoks Result: Destroyed by G-47 Trooper with Particle Gun Performance ------------- Evolutions (0) 0 Regions Visited (1) 200 Robots Destroyed (19) 95 Value Destroyed (433) 433 Prototype IDs (0) 0 Alien Tech Used (0) 0 Bonus (0) 0 TOTAL SCORE: 728 Bonus ------- None Cogmind --------- Core Integrity 0/250 Matter 280/300 Energy 47/160 System Corruption 0% Temperature Warning (335) Movement Core (200) Ox3 Location -10/Materials Parts ------- > --- POWER (1) -------- Light Nuclear Core > --- PROPULSION (2) --- (None) > --- UTILITY (2) ------ Propulsion Shielding Shield Generator > --- WEAPON (2) ------- Small Laser Small Laser > --- INVENTORY (5) ---- Improved Hover Unit Peak State ------------ > --- POWER ------------ Light Nuclear Core > --- PROPULSION ------- Improved Hover Unit Improved Hover Unit > --- UTILITY ---------- Propulsion Shielding Shield Generator > --- WEAPON ----------- Small Laser Small Laser > --- INVENTORY -------- Improved Hover Unit [Rating: 12] Favorites ----------- Power Light Ion Engine Engine Light Ion Engine Power Core Light Nuclear Core Propulsion Aluminum Leg Leg Aluminum Leg Hover Unit Improved Hover Unit Utility Heat Sink Device Heat Sink Protection Propulsion Shielding Weapon Medium Laser Energy Gun Medium Laser Launcher Grenade Launcher Build | -11 -10 ------- Run | Yrd Mat Slots Evolved . | . . Power . | . . Propulsion . | . . Utility . | . . Weapon . | . . Parts Attached 19 | 5 14 Power 3 | 1 2 Engine 2 | 1 1 Core 1 | . 1 Reactor . | . . Propulsion 6 | 2 4 Treads . | . . Leg 3 | 2 1 Wheel . | . . Hover 3 | . 3 Flight . | . . Utility 4 | . 4 Device 3 | . 3 Storage . | . . Processor . | . . Hackware . | . . Protection 1 | . 1 Artifact . | . . Weapon 6 | 2 4 Energy Gun 5 | 2 3 Energy Cannon . | . . Ballistic Gun . | . . Ballistic Cannon . | . . Launcher 1 | . 1 Special Weapon . | . . Impact Weapon . | . . Slashing Weapon . | . . Piercing Weapon . | . . Special Melee Weapon . | . . Unidentified Prototypes . | . . Parts Lost 10 | . 10 Power 2 | . 2 Propulsion 3 | . 3 Utility 2 | . 2 Weapon 3 | . 3 Highest Loss Streak 6 | . 6 To Critical Strikes . | . . Average Slot Usage (%) 81 | . 81 Engine 10 | . 10 Core 2 | . 2 Leg 11 | . 11 Hover 14 | . 14 Device 15 | . 15 Protection 1 | . 1 Energy Gun 22 | . 22 Launcher 1 | . 1 Peak Build Rating 12 | 5 12 Average Rating 6 | 4 7 On Entrance 2 | . 5 Naked Turns . | . . Heaviest Build 10 | 7 10 Greatest Support 20 | 20 20 Greatest Overweight (x) 2 | . 2 Average Overweight (x) . | . . Largest Inventory Capacity 5 | 5 5 Average Capacity 5 | 5 5 Most Carried 5 | 1 5 Average Carried 2 | . 2 Final Capacity 5 | 5 5 Final Carried 1 | 1 1 Class Distribution -------------------- 100% | Mutant Dominant Class ---------------- Mutant | -10/Materials Resources | -11 -10 ----------- Run | Yrd Mat Matter Collected 370 | 250 120 Remotely . | . . Salvage Created 600 | 103 497 Parts 36 | 10 26 Haulers Intercepted 1 | . 1 Recyclers Shooed 1 | . 1 Parts Field Recycled . | . . Retrieved Matter . | . . Parts Self-Destructed . | . . Prevented . | . . Kills | -11 -10 ------- Run | Yrd Mat Combat Hostiles Destroyed 10 | . 10 Guns 9 | . 9 AOE 1 | . 1 Classes Destroyed 6 | 1 5 Worker 1 | . 1 Tunneler 5 | 5 . Hauler 1 | . 1 Operator 1 | . 1 Watcher 1 | . 1 Grunt 10 | . 10 Best Kill Streak 3 | 2 3 Combat Bots Only 3 | . 3 Max Kills in Single Turn 1 | 1 1 Gunslinging . | . . Exploded 1 | . 1 Melee . | . . Uniques/NPCs Destroyed . | . . Combat | -11 -10 -------- Run | Yrd Mat Hostile Shots Fired 101 | . 101 Missed 25 | . 25 Damage Taken 925 | . 925 Core 259 | . 259 Absorbed by Shields 162 | . 162 Redirected to Shielding 12 | . 12 Core Remaining (%) 100 | 100 . Volleys Fired 91 | 17 74 Largest 2 | 2 2 Hottest 90 | 90 90 Shots Fired 146 | 34 112 Gun 142 | 34 108 Cannon . | . . Launcher 4 | . 4 Special . | . . Kinetic . | . . Thermal 112 | 17 95 Explosive 4 | . 4 Electromagnetic 30 | 17 13 Robot Hit Streak 8 | 3 8 Robot Miss Streak 5 | 2 5 Penetration Max . | . . Secondary Targets 1 | . 1 Max Gunslinging Chain 1 | . 1 Shots Hit Robots 82 | 17 65 Core Hits 35 | 6 29 Critical Kills . | . . Critical Parts Destroyed . | . . Critical Strikes 3 | 1 2 Burn 3 | 1 2 Melee Attacks . | . . Impact . | . . Slashing . | . . Piercing . | . . Sneak Attacks . | . . Combat Hostiles . | . . Follow-up Attacks . | . . Damage Inflicted 1187 | 245 942 Guns 1026 | 245 781 Cannons . | . . Explosions 141 | . 141 Melee . | . . Ramming 20 | . 20 Kinetic . | . . Thermal 797 | 112 685 Explosive 141 | . 141 Electromagnetic 229 | 133 96 Impact . | . . Slashing . | . . Piercing . | . . Highest Corruption . | . . Average Corruption . | . . Corruption Purged . | . . Corruption Blocked . | . . Overload Shots . | . . Overflow Damage 32 | . 32 Projectiles . | . . Explosions 30 | . 30 Melee 2 | . 2 Knockbacks . | . . Impact . | . . Kinetic . | . . Secondary . | . . Self-Inflicted Damage 100 | . 100 Shots 3 | . 3 Rammed 4 | . 4 Targets Rammed 4 | . 4 Kicked . | . . Crushed . | . . Highest Temperature 329 | 150 329 Average Temperature 56 | 63 53 Received Heat Transfer 461 | . 461 Siege Activations . | . . Robots Corrupted 1 | . 1 Combat Hostiles . | . . Parts Fried 3 | . 3 Impact Corruptions 1 | . 1 Robots Melted . | . . Combat Hostiles . | . . Parts Melted 5 | 1 4 Heat Transferred 2331 | 407 1924 Parts Sabotaged . | . . Parts Stolen . | . . Parts Stripped . | . . Power Chain Reactions . | . . Alert | -11 -10 ------- Run | Yrd Mat Peak Influence 258 | 25 258 Initial 16 | . 16 Average 96 | 11 129 Maximum Alert Level 1 | . 1 Low Security (%) 84 | 100 78 Level 1 15 | . 21 Level 2 . | . . Level 3 . | . . Level 4 . | . . Level 5 . | . . High Security . | . . Max Security . | . . Squads Dispatched 3 | . 3 Investigation 1 | . 1 Extermination . | . . Reinforcement 2 | . 2 Assault . | . . Garrison . | . . Intercept . | . . Searches Triggered . | . . Construction Impeded . | . . Haulers Reinforced . | . . Active Scanning Responses . | . . Cargo Convoy Interrupts . | . . Stealth | -11 -10 --------- Run | Yrd Mat Distress Signals 3 | . 3 Communications Jammed . | . . Distress Signals . | . . Times Spotted 22 | . 22 Peak Tracking Total 5 | . 5 Tactical Retreats 1 | . 1 Traps | -11 -10 ------- Run | Yrd Mat Traps Triggered 1 | . 1 Indirectly . | . . Trap Hack Attempts . | . . Triggered . | . . Disarmed . | . . Reprogrammed . | . . Reused . | . . Traps Extracted . | . . Installed . | . . Triggered . | . . Machines | -11 -10 ---------- Run | Yrd Mat Machines Disabled 1 | . 1 Max in Single Turn 1 | . 1 Machines Repaired . | . . Machines Dismantled . | . . Machines Sabotaged . | . . Overloaded Fab Kills . | . . Hacking | -11 -10 --------- Run | Yrd Mat Machines Accessed 2 | . 2 Terminals 1 | . 1 Fabricators . | . . Repair Stations . | . . Recycling Units 1 | . 1 Scanalyzers . | . . Garrison Access . | . . Total Hacks 10 | . 10 Successful 6 | . 6 Failed 4 | . 4 Catastrophic 2 | . 2 Database Lockouts . | . . Manual . | . . Terminals 7 | . 7 Fabricators . | . . Repair Stations . | . . Recycling Units 3 | . 3 Scanalyzers . | . . Garrison Access . | . . Terminal Hacks 5 | . 5 Alert Level 2 | . 2 Unreport Threat 1 | . 1 Surveillance Status 1 | . 1 Transport Status 1 | . 1 Fabricator Hacks . | . . Repair Station Hacks . | . . Recycling Unit Hacks 1 | . 1 Report Inventory 1 | . 1 Scanalyzer . | . . Garrison Access Hacks . | . . Unauthorized Hacks . | . . Terminals . | . . Fabricators . | . . Repair Stations . | . . Recycling Units . | . . Scanalyzers . | . . Garrison Access . | . . Data Cores Recovered . | . . Used . | . . Hacking Detections 2 | . 2 Full Trace Events 1 | . 1 Feedback Events . | . . Feedback Blocked . | . . Robot Schematics Acquired . | . . Robots Built . | . . Authchips . | . . Time . | . . Total Robot Build Rating . | . . Part Schematics Acquired . | . . Parts Built . | . . Authchips . | . . Time . | . . Total Part Build Rating . | . . Parts Repaired . | . . Time . | . . Parts Recycled . | . . Recycled Matter . | . . Retrieved Matter . | . . Retrieved Components . | . . Parts Scanalyzed . | . . Part Schematics Acquired . | . . Parts Damaged . | . . Bothacking | -11 -10 ------------ Run | Yrd Mat Used RIF Installer . | . . Robots Hacked . | . . Non-combat . | . . Combat . | . . Robot Hacks Applied . | . . Relay Couplers Released . | . . Fabnet Peak Effective % . | . . Robots Rewired . | . . Allies Hacked . | . . Hacks Repelled . | . . Allies | -11 -10 -------- Run | Yrd Mat Total Allies . | . . Largest Group . | . . Highest-Rated Group . | . . Highest-Rated Ally . | . . Total Orders . | . . Ally Attacks . | . . Total Damage . | . . Kills . | . . Allies Corrupted . | . . Allies Melted . | . . Intel | -11 -10 ------- Run | Yrd Mat Robot Analysis Total . | . . Derelict Logs Recovered . | . . Drone Launches . | . . Drone Recoveries . | . . Exploration | -11 -10 ------------- Run | Yrd Mat Turns Passed 624 | 176 448 Spaces Moved 356 | 99 257 Core 8 | 6 2 Treads . | . . Legs 173 | 93 80 Wheels . | . . Hover 175 | . 175 Flight . | . . Fastest Speed 50 | 50 56 Average Speed 88 | 115 78 Slowest Speed 150 | 120 150 Overloaded Moves . | . . Propulsion Burnouts . | . . Robots Hopped . | . . Cave-ins Triggered . | . . Exploration Rate (%) 26 | 4 49 Regions Visited 1 Branch Regions . Pre-discovered Areas . | . . Known Exits Taken . | . . Unknown Exits Taken 1 | 1 . Scrap Searched . | . . Spaces Dug . | . . Terrain Destroyed 52 | . 52 Melee . | . . Projectile . | . . AOE 52 | . 52 Terrain Rammed . | . . Walls Destroyed . | . . Machines Disabled . | . . Actions | -11 -10 --------- Run | Yrd Mat Total 519 | 126 393 Wait 28 | . 28 Move 355 | 98 257 Hop . | . . Pick Up 18 | 6 12 Fast Attach 1 | . 1 Attach 17 | 5 12 Detach 1 | . 1 Swap 1 | . 1 Drop 3 | . 3 Fire 91 | 17 74 Melee . | . . Ram 4 | . 4 Kick . | . . Crush . | . . Escape Stasis . | . . Rewire . | . . Trap . | . . Miscellaneous . | . . Route ------- -11/Scrapyard -10/Materials History --------- Turn | Location | Event 4 | -11/Scrapyard | Discovered new exit (range 15) 177 | -11/Scrapyard | Entered Materials 334 | -10/Materials | Build established: Mutant 477 | -10/Materials | Core integrity fell below 50% 563 | -10/Materials | Lost 6 parts (2p1n2u1w) 605 | -10/Materials | Core integrity fell below 20% 625 | -10/Materials | Destroyed by G-47 Trooper with Particle Gun Last Messages --------------- K-01 Serf collects debris. U-05 Engineer lays Concrete. K-01 Serf collects debris. Slammed into K-01 Serf. Destabilizing: System interference. Sml. Laser temporarily disabled. Slammed into T-07 Excavator. Slammed into K-01 Serf. T-07 Excavator is excavating. Slammed into K-01 Serf. Destroyed Sml. Matter Pod. K-01 Serf system corrupted by crushing effect. K-01 Serf system terminally corrupted. Lgt. Ion Engine fried. Wheel fried. Acquired Propulsion Shielding. Imp. Hover Unit destroyed. G-34 Mercenary destroyed. Imp. Hover Unit destroyed. K-01 Serf collects debris. Map ----- +----------------------------------------------------+ | ?????????????????????????????????????? | | ??????????????????????????????????????? | | ????????????????????????????????????? | | ????????????????????????????????????????# | | ????????????????????????????????????????#? | | ?????????????????????????????????????????? | | ????????????????????????#????????????????? | | ??????????????????????? ?????????????????? | | ??????????????????????? ?????????????????? | | ?????????????????????? ?????????????????? | | ?????????????????#####/#####?????????????? | | ?????????????????# #?????????????? | | ?????????????????# """ """ #??????####???? | | ?????????????????# """ """ #??????# #???? | | ?????????????????# """ """ ######### ##### | | ?????????????????# +%% % | | ?????????????????# ##### # ### | | ?????????????????# =#???# # #?? | | ?????????????????# #???# # #?? | | ?????????????????##+########???# # #?? | | ??????????????????# #??????????# # #?? | | ??????????????????# #??????????# # #?? | | ??????????????????# #??????????# # #?? | | ??????????????????# #??????????# # #?? | | ?????????####+##### ######+????? # #?? | | ???????# g * @ # #?? | | ???????# % k ### #???? # #?? | | ???????+ = !!! #???????? # #?? | | ???????# [[ !! #???????? # #?? | | ???????# [[ !! #????????+# #?? | | ???????# [ ????????# #?? | | ???????# ! ###???????? ??? | | ???????# #?????????????????? | | ???????### ####### #?????????????????? | | ?????????#+??????## #?????????????????? | | ??????????????????? #?????????????????? | | ??????????????????? #?????????????????? | | ??????????????????? #?????????????????? | | ??????????????????? #?????????????????? | | ??????????????????? ??????????????????? | | ??????????????????? ????????????????????? | | ?????????????????????????????????????????? | | ?????????????????????????????????????????? | | ?????????????????????????????????????????? | | ?????????????????????????????????????????? | | ?????????????????????????????????????????? | | ?????????????????????????????????????????? | | ?????????????????????????????????????????? | | ?????????????????????????????????????????? | | ?????????????????????????????????????????? | +----------------------------------------------------+ Best States ------------- Heat Dissipation 35 Energy Generation 14 Energy Capacity 160 Matter Stores 300 Matter Capacity 300 Sight Range 16 Terrain Scan Density 10 Propulsion Shielding 33 Evasion (%) 55 Item Schematics ----------------- None Robot Schematics ------------------ None Fabricated ------------ Nothing Alien Tech Used ----------------- None Achievements -------------- None Challenges ------------ None Game ------ Seed ScrapLightningActivator Manual? 0 Play Time 00:13:02 Cumulative 15.2 hours Start 2024.08.10 @ 05:51:48 End 2024.08.10 @ 06:04:22 Sessions 1 Manual Loads 0 Difficulty Rogue Special Mode None Game No. 32 Rogue 32 Adventurer 0 Explorer 0 Win Type - Total 0 Types 0/0/0/0/0/0/0/0/0 Lore% 13 Gallery% 21 Achievement% 19 Wizard Run 0 Options --------- Layout 1 ASCII 0 Keyboard 0 Movement Mouse Keybinds 0 Fullscreen 1 Font 16/SmallcapsGlow Map View 50x40 Zoom Use 0% Tactical HUD 0 Map Filters NONE Filters NONE Steam SD RUN: 8d450366-b7c5-4838-804e-b7bb302502f7